Cogmind - Beta 15 @@@ ROGUE MODE // 2025.08.29 @ 10:42:04 Player: beans Result: Destroyed by Y-45 Defender with Beam Rifle Performance ------------- Evolutions (1) 500 Regions Visited (2) 400 Robots Destroyed (45) 225 Value Destroyed (981) 981 Prototype IDs (0) 0 Alien Tech Used (0) 0 Bonus (19) 19 TOTAL SCORE: 2125 Bonus ------- High Alert Combat Kills 19 Cogmind --------- Core Integrity 0/400 Matter 141/700 Energy 100/100 System Corruption 0% Temperature Cool (9) Movement Core (300) Ox5 Location -9/Materials Parts ------- > --- POWER (1) -------- (None) > --- PROPULSION (2) --- (None) > --- UTILITY (3) ------ High-capacity Matter Pod High-capacity Matter Pod Hardened Light Armor Plating > --- WEAPON (3) ------- Light Cannon > --- INVENTORY (5) ---- High-capacity Matter Pod (0) Light Assault Rifle Grenade Launcher Rocket Launcher Mini Grenade Launcher Peak State ------------ > --- POWER ------------ (None) > --- PROPULSION ------- (None) > --- UTILITY ---------- High-capacity Matter Pod High-capacity Matter Pod Hardened Light Armor Plating > --- WEAPON ----------- Light Cannon > --- INVENTORY -------- High-capacity Matter Pod Light Assault Rifle Grenade Launcher Rocket Launcher Mini Grenade Launcher [Rating: 5] Favorites ----------- Power None Propulsion Light Treads Treads Light Treads Utility High-capacity Matter Pod Storage High-capacity Matter Pod Protection Hardened Light Armor Plating Weapon Mini Grenade Launcher Ballistic Gun Light Assault Rifle Ballistic Cannon Light Cannon Launcher Mini Grenade Launcher Build | -11 -10 -9 ------- Run | Yrd Mat Mat Slots Evolved 2 | . . 2 Power . | . . . Propulsion . | . . . Utility 1 | . . 1 Weapon 1 | . . 1 Parts Attached 14 | 3 3 8 Power . | . . . Engine . | . . . Core . | . . . Reactor . | . . . Propulsion 2 | 2 . . Treads 2 | 2 . . Leg . | . . . Wheel . | . . . Hover . | . . . Flight . | . . . Utility 3 | . . 3 Device . | . . . Storage 2 | . . 2 Processor . | . . . Hackware . | . . . Protection 1 | . . 1 Artifact . | . . . Weapon 9 | 1 3 5 Energy Gun . | . . . Energy Cannon . | . . . Ballistic Gun 3 | 1 2 . Ballistic Cannon 2 | . 1 1 Launcher 4 | . . 4 Special Weapon . | . . . Impact Weapon . | . . . Slashing Weapon . | . . . Piercing Weapon . | . . . Special Melee Weapon . | . . . Unidentified Prototypes . | . . . Parts Lost 6 | . 3 3 Power . | . . . Propulsion 2 | . 2 . Utility . | . . . Weapon 4 | . 1 3 Highest Loss Streak 3 | . 3 3 To Critical Strikes . | . . . Average Backups 3 | . 1 4 Power . | . . . Propulsion . | . . . Utility . | . . . Weapon 2 | . 1 3 Tool/Special . | . . . Unused Backups 2 | . . 2 Power . | . . . Propulsion . | . . . Utility 1 | . . 1 Weapon 1 | . . 1 Tool/Special . | . . . Average Slot Usage (%) 29 | . 30 28 Treads 1 | . 7 . Storage 11 | . . 16 Ballistic Gun 5 | . 15 1 Ballistic Cannon 3 | . 8 1 Launcher 6 | . . 9 Peak Build Rating 5 | 3 3 5 Average Rating 3 | 2 2 3 On Entrance 1 | . 3 2 Naked Turns 1 | . . 1 Heaviest Build 16 | 2 4 16 Greatest Support 40 | 40 40 3 Greatest Overweight (x) 5 | . 1 5 Average Overweight (x) 1 | . . 1 Largest Inventory Capacity 5 | 5 5 5 Average Capacity 5 | 5 5 5 Most Carried 5 | 2 3 5 Average Carried 3 | . 1 4 Final Capacity 5 | 5 5 5 Final Carried 5 | . 3 5 Class Distribution -------------------- 100% | Mutant Dominant Class ---------------- Mutant | -10/Materials Mutant | -9/Materials Resources | -11 -10 -9 ----------- Run | Yrd Mat Mat Matter Collected 743 | 218 171 354 Remotely . | . . . Salvage Created 1075 | . 393 682 Parts 99 | . 28 71 Haulers Intercepted 3 | . 1 2 Recyclers Shooed 1 | . . 1 Parts Field Recycled . | . . . Retrieved Matter . | . . . Parts Self-Destructed . | . . . Prevented . | . . . Kills | -11 -10 -9 ------- Run | Yrd Mat Mat Combat Hostiles Destroyed 29 | . 10 19 Guns 7 | . 5 2 Cannons 6 | . 5 1 AOE 16 | . . 16 Classes Destroyed 9 | . 6 3 Worker 4 | . 1 3 Builder 2 | . . 2 Hauler 3 | . 1 2 Recycler 2 | . . 2 Operator 2 | . 1 1 Watcher 3 | . 1 2 Swarmer 10 | . 3 7 Grunt 15 | . 7 8 Sentry 4 | . . 4 Best Kill Streak 17 | . 4 17 Combat Bots Only 8 | . 3 8 Max Kills in Single Turn 3 | . 1 3 Gunslinging . | . . . Exploded 3 | . . 3 Melee . | . . . Uniques/NPCs Destroyed . | . . . Combat | -11 -10 -9 -------- Run | Yrd Mat Mat Hostile Shots Fired 152 | . 76 76 Missed 45 | . 21 24 Hits 107 | . 55 52 Projectile 107 | . 55 52 Critical Strikes 3 | . . 3 Damage Taken 1431 | . 684 747 Core 604 | . 200 404 Absorbed by Shields . | . . . Core Remaining (%) 60 | 100 20 . Volleys Fired 91 | . 42 49 Largest 2 | . 2 2 Hottest 50 | . 50 50 Shots Fired 124 | . 66 58 Gun 62 | . 52 10 Cannon 25 | . 14 11 Launcher 37 | . . 37 Special . | . . . Kinetic 87 | . 66 21 Thermal . | . . . Explosive 37 | . . 37 Electromagnetic . | . . . Robot Hit Streak 8 | . 7 8 Robot Miss Streak 3 | . 3 2 Penetration Max . | . . . Secondary Targets . | . . . Shots Hit Robots 64 | . 42 22 Core Hits 69 | . 22 47 Critical Kills . | . . . Critical Parts Destroyed . | . . . Critical Strikes 2 | . 1 1 Blast 2 | . 1 1 Melee Attacks . | . . . Impact . | . . . Slashing . | . . . Piercing . | . . . Sneak Attacks . | . . . Combat Hostiles . | . . . Follow-up Attacks . | . . . Damage Inflicted 2285 | . 538 1747 Guns 378 | . 330 48 Cannons 326 | . 208 118 Explosions 1581 | . . 1581 Melee . | . . . Ramming . | . . . Kinetic 704 | . 538 166 Thermal . | . . . Explosive 1558 | . . 1558 Electromagnetic 23 | . . 23 Impact . | . . . Slashing . | . . . Piercing . | . . . Highest Corruption . | . . . Average Corruption . | . . . Corruption Purged . | . . . Corruption Blocked . | . . . Overload Shots . | . . . Overflow Damage 15 | . . 15 Projectiles . | . . . Explosions 15 | . . 15 Melee . | . . . Knockbacks 3 | . 3 . Impact . | . . . Kinetic 2 | . 2 . Secondary 1 | . 1 . Self-Inflicted Damage 219 | . . 219 Shots 8 | . . 8 Rammed . | . . . Targets Rammed . | . . . Kicked . | . . . Crushed . | . . . Highest Temperature 15 | . 15 14 Average Temperature 6 | . 5 7 Received Heat Transfer 483 | . 339 144 Siege Activations . | . . . Martial Activations . | . . . Shielding Activations . | . . . Robots Disrupted . | . . . Combat Hostiles . | . . . Robots Corrupted . | . . . Combat Hostiles . | . . . Parts Fried . | . . . Impact Corruptions . | . . . Robots Melted . | . . . Combat Hostiles . | . . . Parts Melted . | . . . Heat Transferred . | . . . Parts Sabotaged . | . . . Parts Stolen . | . . . Parts Stripped . | . . . Power Chain Reactions . | . . . Alert | -11 -10 -9 ------- Run | Yrd Mat Mat Maximum Alert Level 2 | . . 2 Low Security (%) 38 | 100 100 11 Level 1 57 | . . 81 Level 2 4 | . . 6 Level 3 . | . . . Level 4 . | . . . Level 5 . | . . . High Security . | . . . Max Security . | . . . Peak Influence 480 | . 94 480 Initial 31 | . . 31 Average 234 | . 49 316 Influence Increases 1105 | . 264 841 Destroy 0b10 Robot/C 580 | . 200 380 Destroy 0b10 Robot/NC 85 | . 20 65 Destroy Leader 142 | . 44 98 Successful Hack 2 | . . 2 Disable Machine 60 | . . 60 Destroy Structure 236 | . . 236 Influence Decreases 643 | . 190 453 Entered New Map 43 | . . 43 Time Decay 540 | . 160 380 Lost Part 60 | . 30 30 Squads Dispatched 6 | . 3 3 Investigation 3 | . 1 2 Extermination . | . . . Reinforcement 3 | . 2 1 Assault . | . . . Garrison . | . . . Intercept . | . . . Searches Triggered . | . . . Construction Impeded 1 | . . 1 Haulers Reinforced . | . . . Active Scanning Responses . | . . . Cargo Convoy Interrupts . | . . . Stealth | -11 -10 -9 --------- Run | Yrd Mat Mat Distress Signals 4 | . 2 2 Communications Jammed . | . . . Distress Signals . | . . . Times Spotted 36 | . 13 23 Peak Tracking Total 12 | . 7 12 Tactical Retreats . | . . . Traps | -11 -10 -9 ------- Run | Yrd Mat Mat Traps Triggered 3 | . 2 1 Indirectly . | . . . Trap Hack Attempts . | . . . Triggered . | . . . Disarmed . | . . . Reprogrammed . | . . . Reused . | . . . Traps Extracted . | . . . Installed . | . . . Triggered . | . . . Machines | -11 -10 -9 ---------- Run | Yrd Mat Mat Machines Disabled 4 | . . 4 Max in Single Turn 1 | . . 1 Machines Repaired . | . . . Machines Dismantled . | . . . Machines Sabotaged . | . . . Overloaded Fab Kills . | . . . Hacking | -11 -10 -9 --------- Run | Yrd Mat Mat Machines Accessed 2 | . . 2 Terminals . | . . . Fabricators . | . . . Repair Stations . | . . . Recycling Units . | . . . Scanalyzers 2 | . . 2 Garrison Access . | . . . Total Hacks 5 | . . 5 Successful 2 | . . 2 Failed 3 | . . 3 Catastrophic . | . . . Database Lockouts . | . . . Manual . | . . . Terminals . | . . . Fabricators . | . . . Repair Stations . | . . . Recycling Units . | . . . Scanalyzers 5 | . . 5 Garrison Access . | . . . Terminal Hacks . | . . . Fabricator Hacks . | . . . Repair Station Hacks . | . . . Recycling Unit Hacks . | . . . Scanalyzer 2 | . . 2 Insert Component 1 | . . 1 Analyze 1 | . . 1 Garrison Access Hacks . | . . . Unauthorized Hacks . | . . . Terminals . | . . . Fabricators . | . . . Repair Stations . | . . . Recycling Units . | . . . Scanalyzers . | . . . Garrison Access . | . . . Data Cores Recovered 1 | . . 1 Used . | . . . Hacking Detections 2 | . . 2 Full Trace Events 1 | . . 1 Feedback Events . | . . . Feedback Blocked . | . . . Robot Schematics Acquired . | . . . Robots Built . | . . . Authchips . | . . . Time . | . . . Total Robot Build Rating . | . . . Part Schematics Acquired 1 | . . 1 Parts Built . | . . . Authchips . | . . . Time . | . . . Total Part Build Rating . | . . . Parts Repaired . | . . . Time . | . . . Parts Recycled . | . . . Recycled Matter . | . . . Retrieved Matter . | . . . Retrieved Components . | . . . Parts Scanalyzed 1 | . . 1 Part Schematics Acquired 1 | . . 1 Parts Damaged . | . . . Bothacking | -11 -10 -9 ------------ Run | Yrd Mat Mat Used RIF Installer . | . . . Robots Hacked . | . . . Non-combat . | . . . Combat . | . . . Robot Hacks Applied . | . . . Relay Couplers Released . | . . . Fabnet Peak Effective % . | . . . Robots Rewired . | . . . Allies Hacked . | . . . Hacks Repelled . | . . . Allies | -11 -10 -9 -------- Run | Yrd Mat Mat Total Allies . | . . . Largest Group . | . . . Highest-Rated Group . | . . . Highest-Rated Ally . | . . . Total Orders . | . . . Ally Attacks . | . . . Total Damage . | . . . Kills . | . . . Allies Corrupted . | . . . Allies Melted . | . . . Intel | -11 -10 -9 ------- Run | Yrd Mat Mat Active Infowar (turns) . | . . . Robot Analysis Total . | . . . Derelict Logs Recovered . | . . . Drone Launches . | . . . Drone Recoveries . | . . . Exploration | -11 -10 -9 ------------- Run | Yrd Mat Mat Turns Passed 1257 | 54 322 881 Spaces Moved 799 | 35 212 552 Core 750 | 8 190 552 Treads 49 | 27 22 . Legs . | . . . Wheels . | . . . Hover . | . . . Flight . | . . . Fastest Speed 50 | 50 50 50 Average Speed 126 | 134 100 136 Slowest Speed 300 | 160 160 300 Overloaded Moves . | . . . Propulsion Burnouts . | . . . Robots Hopped . | . . . Potential Cave-ins . | . . . Cave-ins Triggered . | . . . Exploration Rate (%) 33 | 3 39 57 Regions Visited 2 Branch Regions . Pre-discovered Areas . | . . . Known Exits Taken . | . . . Unknown Exits Taken 2 | 1 1 . Scrap Searched . | . . . Spaces Dug 67 | . . 67 Terrain Destroyed 243 | . . 243 Melee . | . . . Projectile . | . . . AOE 243 | . . 243 Terrain Rammed . | . . . Walls Destroyed . | . . . Machines Disabled . | . . . Actions | -11 -10 -9 --------- Run | Yrd Mat Mat Total 926 | 42 261 623 Wait 6 | . . 6 Move 797 | 34 211 552 Hop . | . . . Pick Up 14 | 4 5 5 Fast Attach 3 | . . 3 Attach 8 | 3 2 3 Detach 1 | . . 1 Swap 4 | . 1 3 Drop 2 | 1 . 1 Fire 91 | . 42 49 Melee . | . . . Ram . | . . . Kick . | . . . Crush . | . . . Escape Stasis . | . . . Rewire . | . . . Trap . | . . . Miscellaneous . | . . . Route ------- -11/Scrapyard -10/Materials -9/Materials (discovered 2 exits: [*Mat] / [*Min]) History --------- Turn | Location | Event 14 | -11/Scrapyard | Discovered new exit (range 16) 55 | -11/Scrapyard | Entered Materials 132 | -10/Materials | Core integrity fell below 50% 170 | -10/Materials | Lost 3 parts (2n1w) 305 | -10/Materials | Build established: Mutant 359 | -10/Materials | Discovered new exit (range 16) 377 | -10/Materials | Entered another Materials area 377 | -9/Materials | Evolved 2 slots: Utility x1, Weapon x1 494 | -9/Materials | Core integrity fell below 50% 495 | -9/Materials | Destroyed 8 combat bots 501 | -9/Materials | Lost 3 parts (3w) 617 | -9/Materials | Discovered new exit (range 7) 885 | -9/Materials | Discovered new exit (range 15) 1176 | -9/Materials | Core integrity fell below 20% 1258 | -9/Materials | Destroyed by Y-45 Defender with Beam Rifle Last Messages --------------- K-01 Serf collects debris. U-05 Engineer lays Concrete. K-01 Serf cleans the Terminal. U-05 Engineer lays Concrete. K-01 Serf cleans the Terminal. U-05 Engineer lays Concrete. K-01 Serf collects debris. U-05 Engineer lays Concrete. U-05 Engineer builds a Wall. K-01 Serf collects debris. U-05 Engineer lays Concrete. The unstable cave ceiling collapses. Med. Storage Unit crushed. U-05 Engineer lays Concrete. K-01 Serf collects debris. U-05 Engineer lays Concrete. U-05 Engineer builds a Wall. K-01 Serf collects debris. U-05 Engineer builds a Wall. K-01 Serf collects debris. Map ----- +----------------------------------------------------+ | ?????????????????????????????????????????????????? | | ?????????????????????????????????????????????????? | | ?????????????????????????????????????????????????? | | ?????????????????????????????????????????????????? | | ?????????????????????????????????????????????????? | | ?????????????????????????????????????????????????? | | ?????????????????????????????????????????????????? | | ?????????????????????????????????????????????????? | | ?????????????????????????????????????????????????? | | ?????????????????????????????????????????????????? | | ?????????????????????????????????????????????????? | | ?????????????????????????????????????????????????? | | ?????????????????????????????????????????????????? | | ?????????????????????????????????????????????????? | | ?????????????? ???????????????????????????????? | | ?????????????? ???????????????????????????????? | | ??????????????# ??????????????????????????????? | | ?????????????## "?????????????????????????????? | | ?????????????#=%= ?????????????????????????????? | | ???????????#?# ?????????????????????????#### | | ??????????? # #????????????????????????# | | ??????????? ]= #########???????????????# | | ?????????? !# / / #???????????????# | | ??????????" !/# % #???????????????# | | ??????????" ! #???????????????# | | ??????????" @ #??????????????## | | ?????????" k #??????????????# | | ?????????????# #### # ########???????????# | | ?????????????# % #???????????# | | ?????????????# # # #???????????## | | ?????????????# == ## ####+########## % | | ?????????????# %! # k # " | | ?????????????# ## "T" + " | | ?????????????# ?# / """ # | | ?????????????# # #??#// % # #####+## | | ????????????# Y ###?# ######+### ## % | | ????????????? ??? ## """ | | | ????????????? ???? ## """ | | ??????????????? ????? ## """ | | ????????????????????? ########### ## ! * | | ????###############????????????????# ## #! | | ????# #????????????????# ######## | | ????? T #????????????????# #??????## | | ????# """ """ #????????????????# ######## | | ????? """ """ ?????????????????# ######### | | ???????"" """ ???#####??????????# | | ????????? ??## ##########?# ##### | | ?????????##+###+#### #?# % ## | | ?????????# """" #?# % !## | | ?????????# ###### """" ### ## | +----------------------------------------------------+ Best States ------------- Heat Dissipation 28 Energy Generation 5 Energy Capacity 100 Matter Stores 311 Matter Capacity 700 Sight Range 16 Terrain Scan Density 10 Armor Coverage 150 Evasion (%) 50 Recoil Reduction 2 Item Schematics ----------------- Hcp. Matter Pod | -9/Materials | Scanalyzed Robot Schematics ------------------ None Fabricated ------------ Nothing Repaired ---------- Nothing Alien Tech Used ----------------- None Achievements -------------- None Challenges ------------ None Game ------ Seed DisintegrationFluxLaser Manual? 0 Play Time 00:08:27 Cumulative 109.9 hours Start 2025.08.29 @ 10:30:40 End 2025.08.29 @ 10:42:04 Sessions 1 Manual Loads 0 Difficulty Rogue Special Mode None Game No. 406 Rogue 406 Adventurer 0 Explorer 0 Win Type - Total 0 Types 0/0/0/0/0/0/0/0/0/0 Lore% 44 Gallery% 43 Achievement% 31 Wizard Run 0 Options --------- Layout 2 ASCII 0 Keyboard 0 Movement Mouse Keybinds 0 Fullscreen 2 Font 24/Smallcaps Map View 50x44 Zoom Use 0% Tactical HUD 0 Map Filters NONE Filters NONE Steam 1 RUN: b1330ffc-12d4-4966-8b95-a4577c1ffff7